Cogmind - Beta 16 @@@ ROGUE MODE // 2025.11.12 @ 15:01:17 Player: ClassActJerk Result: Destroyed by H-66 Slayer with Gauss Rifle Performance ------------- Evolutions (4) 2000 Regions Visited (6) 1200 Robots Destroyed (54) 270 Value Destroyed (1786) 1786 Prototype IDs (4) 80 Alien Tech Used (0) 0 Bonus (700) 700 TOTAL SCORE: 6036 Bonus ------- Pacifist 200 Entered DSFs 500 Cogmind --------- Core Integrity 0/850 Matter 249/300 Energy 100/100 System Corruption 2% Temperature Warm (127) Movement Core (50) Location -6/Factory Parts ------- > --- POWER (3) -------- (None) > --- PROPULSION (2) --- (None) > --- UTILITY (7) ------ (None) > --- WEAPON (3) ------- (None) > --- INVENTORY (5) ---- (None) Peak State ------------ > --- POWER ------------ (None) > --- PROPULSION ------- VSS Leg VSS Leg > --- UTILITY ---------- Large Storage Unit Advanced Visual Processing Unit Signal Interpreter Hardened Medium Armor Plating Improved Light Armor Plating Dynamic Insulation System > --- WEAPON ----------- Minigun Flak Gun Flak Cannon > --- INVENTORY -------- Aluminum Leg Aluminum Leg High-powered Shotgun Flak Gun Great Axe [Rating: 32] Favorites ----------- Power Ion Engine Engine Ion Engine Power Core Light Nuclear Core Propulsion Light Treads Treads Light Treads Leg VSS Leg Wheel Armored Huge Wheel Utility Large Storage Unit Device Dynamic Insulation System Storage Large Storage Unit Processor Signal Interpreter Hackware System Shield Protection Weapon Shielding Weapon Light Assault Rifle Energy Gun Medium Laser Ballistic Gun Light Assault Rifle Ballistic Cannon Flak Cannon Slashing Weapon Great Axe Build | -11 -10 -9 -8 -7 -7 -6 ------- Run | Yrd Mat Mat Mat Fac DSF Fac Slots Evolved 8 | . . 2 2 2 . 2 Power 2 | . . . 1 . . 1 Propulsion . | . . . . . . . Utility 5 | . . 2 1 1 . 1 Weapon 1 | . . . . 1 . . Parts Attached 58 | 6 2 7 18 1 7 17 Power 8 | 1 . 2 2 . 1 2 Engine 4 | 1 . 2 . . . 1 Core 4 | . . . 2 . 1 1 Reactor . | . . . . . . . Propulsion 14 | 2 . 3 4 . . 5 Treads 6 | 2 . 3 1 . . . Leg 5 | . . . . . . 5 Wheel 3 | . . . 3 . . . Hover . | . . . . . . . Flight . | . . . . . . . Utility 16 | 1 2 2 5 . 2 4 Device 4 | . . . . . 1 3 Storage 2 | 1 1 . . . . . Processor 3 | . 1 1 1 . . . Hackware 1 | . . . 1 . . . Protection 6 | . . 1 3 . 1 1 Artifact . | . . . . . . . Weapon 20 | 2 . . 7 1 4 6 Energy Gun 4 | 1 . . 1 . . 2 Energy Cannon . | . . . . . . . Ballistic Gun 11 | 1 . . 3 . 4 3 Ballistic Cannon 4 | . . . 3 1 . . Launcher . | . . . . . . . Special Weapon . | . . . . . . . Impact Weapon . | . . . . . . . Slashing Weapon 1 | . . . . . . 1 Piercing Weapon . | . . . . . . . Special Melee Weapon . | . . . . . . . Unidentified Prototypes 2 | . . . 2 . . . Parts Lost 33 | . . . 8 . 8 17 Power 7 | . . . 4 . 1 2 Propulsion 4 | . . . 1 . 1 2 Utility 11 | . . . 3 . 3 5 Weapon 11 | . . . . . 3 8 Highest Loss Streak 7 | . . . 3 . 6 7 To Critical Strikes 1 | . . . 1 . . . Average Backups 4 | 2 2 6 6 1 2 2 Power . | 1 1 . . . . . Propulsion . | . . . 1 . . 1 Utility . | . . 1 . . . . Weapon 2 | 1 1 4 4 1 1 . Tool/Special . | . . . . . . . Unused Backups 3 | . 1 . 2 . . . Power 1 | . . . 1 . . . Propulsion 1 | . . . 1 . . . Utility . | . . . . . . . Weapon 1 | . 1 . . . . . Tool/Special . | . . . . . . . Average Slot Usage (%) 70 | . 88 97 73 69 49 50 Engine 5 | . 14 11 2 . . 1 Core 1 | . . . 4 . . 1 Treads 9 | . 28 22 6 . . . Leg 3 | . . . . . . 10 Wheel 2 | . . . 5 7 4 . Device 1 | . . . . . 1 5 Storage 8 | . 14 11 9 7 7 5 Processor 12 | . 3 20 18 23 15 7 Protection 5 | . . 11 9 . 1 3 Energy Gun 5 | . 14 11 1 7 2 1 Ballistic Gun 9 | . 14 11 11 . 9 5 Ballistic Cannon 2 | . . . 4 15 4 2 Peak Build Rating 32 | 6 7 13 26 29 31 32 Average Rating 15 | 3 6 11 18 29 20 20 On Entrance 13 | . 6 7 13 26 29 13 Avg Prop Armor Cover (%) . | . . . . . . . Naked Turns 104 | . . . . . . 104 Heaviest Build 46 | 13 28 29 32 34 38 46 Greatest Support 40 | 40 40 40 40 28 28 27 Greatest Overweight (x) 10 | . . . 1 1 10 3 Average Overweight (x) . | . . . . 1 2 . Largest Inventory Capacity 15 | 8 15 15 15 15 15 15 Average Capacity 14 | 6 14 15 15 15 15 13 Most Carried 14 | 5 4 12 14 1 9 7 Average Carried 4 | 2 2 6 7 1 2 2 Final Capacity 15 | 8 15 15 15 15 15 5 Final Carried 12 | 2 4 12 2 1 8 . Class Distribution -------------------- 75% | Mutant 12% | Tank 8% | Scavenger-Mutant Dominant Class ---------------- Mutant | -10/Materials Mutant | -9/Materials Mutant | -8/Materials Gunner | -7/Factory Mutant | -7/DSF Mutant | -6/Factory Resources | -11 -10 -9 -8 -7 -7 -6 ----------- Run | Yrd Mat Mat Mat Fac DSF Fac Matter Collected 1755 | 242 . 145 580 . 345 443 Remotely . | . . . . . . . Salvage Created 2317 | . . 594 995 . 285 443 Parts 107 | . . 31 34 . 17 25 Haulers Intercepted 3 | . . 2 1 . . . Recyclers Shooed 5 | . . 1 3 . . 1 Parts Field Recycled . | . . . . . . . Retrieved Matter . | . . . . . . . Parts Self-Destructed . | . . . . . . . Prevented . | . . . . . . . Parts Restored . | . . . . . . . Kills | -11 -10 -9 -8 -7 -7 -6 ------- Run | Yrd Mat Mat Mat Fac DSF Fac Combat Hostiles Destroyed 38 | . . 9 13 . 9 7 Melee 1 | . . . . . . 1 Guns 29 | . . 9 8 . 7 5 Cannons 8 | . . . 5 . 2 1 Classes Destroyed 13 | . . 5 3 . 2 3 Worker 1 | . . . 1 . . . Builder 3 | . . . 1 . . 2 Tunneler 1 | . . . . . . 1 Hauler 3 | . . 2 1 . . . Recycler 7 | . . 1 5 . . 1 Mechanic 1 | . . . . . . 1 Cutter 4 | . . . . . 4 . Grunt 20 | . . 5 8 . 3 4 Brawler 1 | . . 1 . . . . Sentry 7 | . . 3 4 . . . Specialist 2 | . . . . . 2 . Hunter 3 | . . . 1 . . 2 Programmer 1 | . . . . . . 1 Best Kill Streak 5 | . . 5 5 . 4 3 Combat Bots Only 4 | . . 3 4 . 4 3 Max Kills in Single Turn 2 | . . 1 2 . 2 1 Gunslinging 1 | . . . . . 1 . Exploded . | . . . . . . . Melee 1 | . . . . . . 1 Uniques/NPCs Destroyed . | . . . . . . . Combat | -11 -10 -9 -8 -7 -7 -6 -------- Run | Yrd Mat Mat Mat Fac DSF Fac Hostile Shots Fired 502 | . . 45 171 . 70 216 Missed 134 | . . 11 44 . 19 60 Hits 368 | . . 34 127 . 51 156 Melee 6 | . . 1 . . 5 . Projectile 362 | . . 33 127 . 46 156 AOE 3 | . . . . . 3 . Critical Strikes 15 | . . 1 3 . 3 8 Damage Taken 6311 | . . 475 1788 . 1421 2627 Core 1726 | . . 83 319 . 468 856 Absorbed by Shields . | . . . . . . . Redirected to Shielding 131 | . . 15 116 . . . Regen/Repaired (Parts) 258 | . . . . . . 258 Core Remaining (%) 70 | 100 100 79 42 . 33 . Volleys Fired 176 | 1 . 37 84 . 17 37 Largest 3 | 2 . 2 2 . 3 3 Hottest 135 | 70 . 70 98 . 135 100 Shots Fired 364 | 2 . 74 168 . 51 69 Gun 286 | 2 . 74 114 . 40 56 Cannon 78 | . . . 54 . 11 13 Launcher . | . . . . . . . Special . | . . . . . . . Kinetic 302 | 1 . 37 156 . 45 63 Thermal 56 | 1 . 37 12 . 6 . Explosive . | . . . . . . . Electromagnetic 6 | . . . . . . 6 Robot Hit Streak 17 | . . 17 11 . 7 8 Robot Miss Streak 9 | . . 3 3 . 6 9 Penetration Max . | . . . . . . . Secondary Targets 5 | . . 4 . . 1 . Max Gunslinging Chain 1 | . . 1 . . 1 . Shots Hit Robots 282 | . . 55 124 . 39 64 Core Hits 158 | . . 26 37 . 31 64 Critical Kills . | . . . . . . . Critical Parts Destroyed 1 | . . . 1 . . . Critical Strikes 7 | . . 3 3 . 1 . Burn 5 | . . 3 1 . 1 . Destroy 1 | . . . 1 . . . Blast 1 | . . . 1 . . . Melee Attacks 6 | . . . . . . 6 Impact . | . . . . . . . Slashing 6 | . . . . . . 6 Piercing . | . . . . . . . Sneak Attacks 3 | . . . . . . 3 Combat Hostiles . | . . . . . . . Follow-up Attacks . | . . . . . . . Damage Inflicted 4161 | . . 581 1787 . 508 1285 Guns 2761 | . . 581 1062 . 371 747 Cannons 1083 | . . . 725 . 137 221 Explosions . | . . . . . . . Melee 317 | . . . . . . 317 Ramming . | . . . . . . . Kinetic 3183 | . . 209 1649 . 448 877 Thermal 570 | . . 372 138 . 60 . Explosive . | . . . . . . . Electromagnetic 91 | . . . . . . 91 Impact . | . . . . . . . Slashing 317 | . . . . . . 317 Piercing . | . . . . . . . Highest Corruption 2 | . . . . . 1 2 Average Corruption 1 | . . . . . 1 1 Corruption Purged . | . . . . . . . Corruption Blocked . | . . . . . . . Effects 10 | . . . . . 2 8 Message Errors 1 | . . . . . . 1 Matter Fused 2 | . . . . . . 2 Heat Flow Errors 3 | . . . . . . 3 Data Loss (minor) 2 | . . . . . 1 1 Misfires 1 | . . . . . 1 . Alerts 1 | . . . . . . 1 Overload Shots . | . . . . . . . Overflow Damage 73 | . . . 29 . . 44 Projectiles 29 | . . . 29 . . . Explosions . | . . . . . . . Melee 44 | . . . . . . 44 Knockbacks 30 | . . . 12 . 8 10 Impact . | . . . . . . . Kinetic 26 | . . . 12 . 6 8 Secondary 4 | . . . . . 2 2 Self-Inflicted Damage . | . . . . . . . Shots . | . . . . . . . Rammed . | . . . . . . . Targets Rammed . | . . . . . . . Kicked . | . . . . . . . Crushed . | . . . . . . . Highest Temperature 2010 | 30 . 185 77 . 2010 273 Average Temperature 171 | 18 . 54 17 . 712 63 Received Heat Transfer 1671 | . . 204 792 . 135 540 Effects 21 | . . . . . 21 . Energy Bleed 5 | . . . . . 5 . Interference 4 | . . . . . 4 . Matter Decay 3 | . . . . . 3 . Damage (minor) 3 | . . . . . 3 . Damage (major) 3 | . . . . . 3 . Damage (core) 3 | . . . . . 3 . Siege Activations . | . . . . . . . Martial Activations . | . . . . . . . Shielding Activations . | . . . . . . . Robots Disrupted . | . . . . . . . Combat Hostiles . | . . . . . . . Robots Corrupted . | . . . . . . . Combat Hostiles . | . . . . . . . Parts Fried . | . . . . . . . Impact Corruptions . | . . . . . . . Robots Melted . | . . . . . . . Combat Hostiles . | . . . . . . . Parts Melted 3 | . . 1 2 . . . Heat Transferred 1961 | . . 1332 444 . 185 . Parts Sabotaged . | . . . . . . . Parts Stolen . | . . . . . . . Parts Stripped . | . . . . . . . Power Chain Reactions . | . . . . . . . Alert | -11 -10 -9 -8 -7 -7 -6 ------- Run | Yrd Mat Mat Mat Fac DSF Fac Maximum Alert Level 1 | . . . . . 1 . Low Security (%) 96 | 100 100 100 100 100 59 100 Level 1 3 | . . . . . 40 . Level 2 . | . . . . . . . Level 3 . | . . . . . . . Level 4 . | . . . . . . . Level 5 . | . . . . . . . High Security . | . . . . . . . Max Security . | . . . . . . . Sterilizations 1 | . . . . . 1 . Peak Influence 227 | . 15 126 167 70 227 105 Initial 105 | . . 5 46 70 42 105 Average 33 | . . 43 23 68 156 19 Influence Increases 1179 | . 20 264 373 . 240 282 Destroy 0b10 Robot/C 760 | . . 180 260 . 180 140 Destroy 0b10 Robot/NC 80 | . . 15 40 . . 25 Destroy Leader 186 | . . 54 72 . 30 30 Successful Hack 17 | . 5 . . . . 12 Destroy Structure 1 | . . . 1 . . . Lose Combat Pursuer 135 | . 15 15 . . 30 75 Influence Decreases 1119 | . 5 169 329 94 98 424 Entered New Map 273 | . . 10 64 84 18 97 Time Decay 679 | . 5 159 240 10 . 265 Lost Part 167 | . . . 25 . 80 62 Squads Dispatched 10 | . 2 . 2 1 2 3 Investigation 4 | . . . 1 1 . 2 Extermination 1 | . . . . . . 1 Reinforcement 5 | . 2 . 1 . 2 . Assault . | . . . . . . . Garrison . | . . . . . . . Intercept . | . . . . . . . Searches Triggered . | . . . . . . . Construction Impeded . | . . . . . . . Haulers Reinforced . | . . . . . . . Active Scanning Responses . | . . . . . . . Cargo Convoy Interrupts . | . . . . . . . Stealth | -11 -10 -9 -8 -7 -7 -6 --------- Run | Yrd Mat Mat Mat Fac DSF Fac Distress Signals 5 | . 1 1 3 . . . Communications Jammed . | . . . . . . . Distress Signals . | . . . . . . . Times Spotted 67 | . 5 12 19 . 11 20 Peak Tracking Total 7 | . 3 4 5 . 4 7 Tactical Retreats 6 | . 1 1 . . 2 2 Traps | -11 -10 -9 -8 -7 -7 -6 ------- Run | Yrd Mat Mat Mat Fac DSF Fac Traps Triggered 3 | . . . 1 . 2 . Indirectly . | . . . . . . . Trap Hack Attempts . | . . . . . . . Triggered . | . . . . . . . Disarmed . | . . . . . . . Reprogrammed . | . . . . . . . Reused . | . . . . . . . Traps Extracted . | . . . . . . . Installed . | . . . . . . . Triggered . | . . . . . . . Machines | -11 -10 -9 -8 -7 -7 -6 ---------- Run | Yrd Mat Mat Mat Fac DSF Fac Machines Disabled . | . . . . . . . Max in Single Turn . | . . . . . . . Machines Repaired . | . . . . . . . Machines Dismantled . | . . . . . . . Machines Sabotaged . | . . . . . . . Overloaded Fab Kills . | . . . . . . . Hacking | -11 -10 -9 -8 -7 -7 -6 --------- Run | Yrd Mat Mat Mat Fac DSF Fac Machines Accessed 4 | . 1 . . 1 . 2 Terminals 2 | . 1 . . 1 . . Fabricators . | . . . . . . . Repair Stations 2 | . . . . . . 2 Recycling Units . | . . . . . . . Scanalyzers . | . . . . . . . Garrison Access . | . . . . . . . Total Hacks 11 | . 1 . . 3 . 7 Successful 5 | . 1 . . 1 . 3 Failed 6 | . . . . 2 . 4 Catastrophic 1 | . . . . . . 1 Database Lockouts . | . . . . . . . Manual 1 | . 1 . . . . . Terminals 4 | . 1 . . 3 . . Fabricators . | . . . . . . . Repair Stations 7 | . . . . . . 7 Recycling Units . | . . . . . . . Scanalyzers . | . . . . . . . Garrison Access . | . . . . . . . Terminal Hacks 2 | . 1 . . 1 . . Prototype ID Bank 1 | . 1 . . . . . Open DSF 1 | . . . . 1 . . Fabricator Hacks . | . . . . . . . Repair Station Hacks 3 | . . . . . . 3 Scan Component 2 | . . . . . . 2 Repair 1 | . . . . . . 1 Recycling Unit Hacks . | . . . . . . . Scanalyzer . | . . . . . . . Garrison Access Hacks . | . . . . . . . Unauthorized Hacks . | . . . . . . . Terminals . | . . . . . . . Fabricators . | . . . . . . . Repair Stations . | . . . . . . . Recycling Units . | . . . . . . . Scanalyzers . | . . . . . . . Garrison Access . | . . . . . . . Data Cores Recovered . | . . . . . . . Used . | . . . . . . . Hacking Detections 4 | . 1 . . 1 . 2 Full Trace Events 3 | . . . . 1 . 2 Feedback Events . | . . . . . . . Feedback Blocked . | . . . . . . . Robot Schematics Acquired . | . . . . . . . Robots Built . | . . . . . . . Authchips . | . . . . . . . Time . | . . . . . . . Total Robot Build Rating . | . . . . . . . Part Schematics Acquired . | . . . . . . . Parts Built . | . . . . . . . Authchips . | . . . . . . . Time . | . . . . . . . Total Part Build Rating . | . . . . . . . Part Studies Acquired . | . . . . . . . Parts Repaired 1 | . . . . . . 1 Time 26 | . . . . . . 26 Parts Recycled . | . . . . . . . Recycled Matter . | . . . . . . . Retrieved Matter . | . . . . . . . Retrieved Components . | . . . . . . . Parts Scanalyzed . | . . . . . . . Part Schematics Acquired . | . . . . . . . Parts Damaged . | . . . . . . . Bothacking | -11 -10 -9 -8 -7 -7 -6 ------------ Run | Yrd Mat Mat Mat Fac DSF Fac Used RIF Installer . | . . . . . . . Robots Hacked . | . . . . . . . Non-combat . | . . . . . . . Combat . | . . . . . . . Robot Hacks Applied . | . . . . . . . Relay Couplers Released . | . . . . . . . Fabnet Peak Effective % . | . . . . . . . Robots Rewired . | . . . . . . . Allies Hacked . | . . . . . . . Hacks Repelled . | . . . . . . . Allies | -11 -10 -9 -8 -7 -7 -6 -------- Run | Yrd Mat Mat Mat Fac DSF Fac Total Allies . | . . . . . . . Largest Group . | . . . . . . . Highest-Rated Group . | . . . . . . . Highest-Rated Ally . | . . . . . . . Initial Warlord ECA Mod 9 | . . . . . . 9 Total Orders . | . . . . . . . Ally Attacks . | . . . . . . . Total Damage . | . . . . . . . Kills . | . . . . . . . Allies Corrupted . | . . . . . . . Allies Melted . | . . . . . . . Intel | -11 -10 -9 -8 -7 -7 -6 ------- Run | Yrd Mat Mat Mat Fac DSF Fac Active Infowar (turns) 2167 | . . 372 988 22 299 486 Optics 1852 | . . 372 988 22 299 171 Terrain 315 | . . . . . . 315 Robot Analysis Total . | . . . . . . . Derelict Logs Recovered . | . . . . . . . Drone Launches . | . . . . . . . Drone Recoveries . | . . . . . . . Exploration | -11 -10 -9 -8 -7 -7 -6 ------------- Run | Yrd Mat Mat Mat Fac DSF Fac Turns Passed 3442 | 61 623 443 988 22 331 974 Spaces Moved 1378 | 45 220 155 417 18 99 424 Core 184 | 23 . . . . 28 133 Treads 559 | 22 220 155 162 . . . Legs 291 | . . . . . . 291 Wheels 344 | . . . 255 18 71 . Hover . | . . . . . . . Flight . | . . . . . . . Fastest Speed 50 | 50 160 160 100 115 100 50 Average Speed 147 | 103 160 160 132 115 207 144 Slowest Speed 550 | 160 160 160 240 115 550 330 Overloaded Moves . | . . . . . . . Propulsion Burnouts . | . . . . . . . Robots Hopped . | . . . . . . . Potential Cave-ins . | . . . . . . . Cave-ins Triggered . | . . . . . . . Exploration Rate (%) 23 | 4 41 18 27 1 65 6 Regions Visited 6 Branch Regions . Pre-discovered Areas . | . . . . . . . Known Exits Taken 4 | . 1 1 1 1 . . Unknown Exits Taken 1 | 1 . . . . . . Scrap Searched . | . . . . . . . Spaces Dug . | . . . . . . . Terrain Destroyed . | . . . . . . . Melee . | . . . . . . . Projectile . | . . . . . . . AOE . | . . . . . . . Terrain Rammed . | . . . . . . . Walls Destroyed . | . . . . . . . Machines Disabled . | . . . . . . . Actions | -11 -10 -9 -8 -7 -7 -6 --------- Run | Yrd Mat Mat Mat Fac DSF Fac Total 2459 | 56 492 284 697 19 191 720 Wait 738 | . 264 68 153 . 37 216 Move 1373 | 44 219 154 416 18 98 424 Hop . | . . . . . . . Pick Up 59 | 5 5 14 11 . 14 10 Fast Attach 4 | 3 . . . . . 1 Attach 46 | 3 1 3 12 1 7 19 Detach 1 | . . . . . . 1 Swap 12 | . 1 4 7 . . . Drop 28 | . 2 4 14 . 2 6 Fire 176 | 1 . 37 84 . 17 37 Melee 6 | . . . . . . 6 Ram . | . . . . . . . Kick . | . . . . . . . Crush . | . . . . . . . Escape Stasis 16 | . . . . . 16 . Rewire . | . . . . . . . Trap . | . . . . . . . Miscellaneous . | . . . . . . . Route ------- -11/Scrapyard -10/Materials (discovered 2 exits: *Mat / [*Min]) -9/Materials (discovered 2 exits: *Mat / *Min) -8/Materials -7/Factory -7/DSF -6/Factory History --------- Turn | Location | Event 7 | -11/Scrapyard | Discovered new exit (range 15) 62 | -11/Scrapyard | Entered Materials 301 | -10/Materials | Build established: Mutant 649 | -10/Materials | Discovered new exit (range 11) 676 | -10/Materials | Discovered new exit (range 5) 682 | -10/Materials | Identified exit to Materials 685 | -10/Materials | Entered another Materials area 685 | -9/Materials | Evolved 2 slots: Utility x2 999 | -9/Materials | Discovered new exit (range 9) 1090 | -9/Materials | Discovered new exit (range 16) 1092 | -9/Materials | Identified exit to Mines 1127 | -9/Materials | Identified exit to Materials 1128 | -9/Materials | Entered another Materials area 1128 | -8/Materials | Evolved 2 slots: Power x1, Utility x1 1463 | -8/Materials | Lost 3 parts (1p1n1u) 1952 | -8/Materials | Discovered new exit (range 20) 2026 | -8/Materials | Core integrity fell below 50% 2115 | -8/Materials | Identified exit to Factory 2116 | -8/Materials | Entered Factory 2116 | -7/Factory | Evolved 2 slots: Utility x1, Weapon x1 2138 | -7/Factory | Identified exit to DSF 2138 | -7/Factory | Entered DSF 2153 | -7/DSF | Discovered new exit (range 20) 2167 | -7/DSF | Additional patrols routed to DSF 2190 | -7/DSF | Identified exit to Factory 2319 | -7/DSF | Sterilization system engaged 2339 | -7/DSF | Ambient heat levels rising (+10) 2354 | -7/DSF | Ambient heat levels rising (+10) 2369 | -7/DSF | Ambient heat levels rising (+10) 2384 | -7/DSF | Ambient heat levels rising (+10) 2388 | -7/DSF | Lost 6 parts (1p1n1u3w) 2399 | -7/DSF | Ambient heat levels rising (+10) 2414 | -7/DSF | Ambient heat levels rising (+10) 2429 | -7/DSF | Ambient heat levels rising (+10) 2444 | -7/DSF | Ambient heat levels rising (+10) 2459 | -7/DSF | Ambient heat levels rising (+10) 2462 | -7/DSF | Core integrity fell below 50% 2469 | -7/DSF | Entered Factory 2469 | -6/Factory | Evolved 2 slots: Power x1, Utility x1 2758 | -6/Factory | Repaired Lrg. Storage Unit 2779 | -6/Factory | Build established: Tank 2888 | -6/Factory | Lost 7 parts (3u4w) 3212 | -6/Factory | Core integrity fell below 50% 3228 | -6/Factory | Lost 5 parts (1n1u3w) 3339 | -6/Factory | Core integrity fell below 20% 3443 | -6/Factory | Destroyed by H-66 Slayer with Gauss Rifle Last Messages --------------- 03392_ System corrupted: Heat flow error (+130). 03409_ C-30 ARC bursts open, deploying its payload. 03409_ B-48 Gladiator unfolds itself. 03409_ G-50 Soldier unfolds itself. 03413_ K-01 Serf cleans the Construction Platform. 03417_ Slug penetrates R-10 Processor. 03417_ U-05 Engineer destroyed. 03417_ Slug penetrates Construction Platform. 03417_ Penetrated by Slug. 03417_ Construction Platform disabled. 03418_ K-01 Serf collects debris. 03419_ R-10 Processor collects Wheel. 03420_ K-01 Serf collects debris. 03422_ Slug penetrates Wall. 03439_ Penetrated by Slug. 03440_ Slug penetrates Wall. 03442_ System corrupted: Heat flow error (+164). 03442_ Penetrated by Slug. Map ----- +----------------------------------------------------+ | ?????????????????????????????????????????????????? | | ?????????????????????????????????????????????????? | | ?????????????????????????????????????????????????? | | ?????????????????????????????????????????????????? | | ???????????????????????????????? ???????????????? | | ???????????????????????????????+ ??????????????? | | ???????????????????????????????# " ?????????????? | | ???????????????????????????????#"%" ????????????? | | ???????????????????????????????# " ############# | | ???????????????????????????????# | | ???????????????????????????????? | | ???????????????????????????????# """ | | ???????????????????????????????# "Y" | | ???????????????????????????????# " " | | ???????????????????????????????# #####+ | | ???????????????????????????????# # | | ???????????????????????????????# # | | ???????????????????????????????# # | | ???????????????????????????????# """"""" # | | ??????????????????############## """"""" # | | ??????????????????# # """"""" # | | ??????????????????# # "" """" ## | | ??????????????????# # ## | | ??????????????????# bg g ## | | ??????????????????# h# ####### | | ??????????????????# @ h #?????? | | ??????????????????# # k #######?????? | | ??????????????????# # %#???????????? | | ??????????????????# # #???????????? | | ??????????????????# # #???????????? | | ??????????????????# # #???????????? | | ??????????????????# # / ??????????? | | ??????????????????############## # ??????????? | | ???????????????????????????????# # "?????????? | | ???????????????????????????????# #?"?????????? | | ???????????????????????????????# #???????????? | | ???????????????????????????????# #???????????? | | ???????????????????????????????# #???????????? | | ???????????????????????????????+ #???????????? | | ???????????????????????????????# #???????????? | | ???????????????????????????????? ????????????? | | ?????????????????????????????????????????????????? | | ?????????????????????????????????????????????????? | | ?????????????????????????????????????????????????? | | ?????????????????????????????????????????????????? | | ?????????????????????????????????????????????????? | | ?????????????????????????????????????????????????? | | ?????????????????????????????????????????????????? | | ?????????????????????????????????????????????????? | | ?????????????????????????????????????????????????? | +----------------------------------------------------+ Best States ------------- Heat Dissipation 37 Energy Generation 24 Energy Capacity 250 Matter Stores 300 Matter Capacity 300 Sight Range 20 Terrain Scan Range 14 Terrain Scan Density 10 EM Shielding 2 Armor Coverage 375 Propulsion Shielding 33 Weapon Shielding 33 Evasion (%) 55 Targeting Accuracy 8 Recoil Reduction 2 Defensive Hacking 10 Item Schematics ----------------- None Robot Schematics ------------------ None Fabricated ------------ Nothing Repaired ---------- Lrg. Storage Unit | 26% | -6/Factory Studied --------- None Alien Tech Used ----------------- None Achievements -------------- Hey, That's Mine! Challenges ------------ None Game ------ Seed ShadePlatingStrikerail Manual? 0 Play Time 00:33:03 Cumulative 21.8 hours Start 2025.11.12 @ 14:32:31 End 2025.11.12 @ 15:01:17 Sessions 1 Manual Loads 0 Difficulty Rogue Special Mode None Game No. 65 Rogue 65 Adventurer 0 Explorer 0 Win Type - Total 0 Types 0/0/0/0/0/0/0/0/0/0 Lore% 6 Gallery% 19 Achievement% 14 Wizard Run 0 Options --------- Layout 1 ASCII 0 Keyboard 0 Movement Mouse Keybinds 0 Fullscreen 1 Font 24/Terminus Map View 50x35 Zoom Use 0% Tactical HUD 1 Map Filters NONE Filters NONE Steam 1 RUN: 0db9ae37-5a0f-4d14-83c8-9f1121356abc